[Event "Early-Titled-Tuesday-Blitz-April-02-2024"]
[Site "Chess.com"]
[Date "2024.04.02"]
[Round "11"]
[White "Casper"]
[Black "teresin05"]
[Result "1-0"]
[WhiteElo "2495"]
[BlackElo "2272"]
[TimeControl "180+1"]
[EndTime "10:06:41 PDT"]
[Termination "Casper won by checkmate"]

1. e4 {[%clk 0:03:00.9]} 1... c5 {[%clk 0:01:40]} 2. d4 {[%clk 0:02:55.8]} 2...
cxd4 {[%clk 0:01:39.6]} 3. Qxd4 {[%clk 0:02:56.7]} 3... Nc6 {[%clk 0:01:38]} 4.
Qe3 {[%clk 0:02:57.4]} 4... d5 {[%clk 0:01:36.5]} 5. exd5 {[%clk 0:02:57]} 5...
Qxd5 {[%clk 0:01:37.4]} 6. Qb3 {[%clk 0:02:57.7]} 6... Nf6 {[%clk 0:01:34.8]} 7.
Nf3 {[%clk 0:02:55.4]} 7... Qxb3 {[%clk 0:01:32.3]} 8. axb3 {[%clk 0:02:54.6]}
8... Bf5 {[%clk 0:01:29.1]} 9. c3 {[%clk 0:02:50.1]} 9... e6 {[%clk 0:01:26.8]}
10. Na3 {[%clk 0:02:48.7]} 10... Bd6 {[%clk 0:01:26.1]} 11. Nb5 {[%clk
0:02:47.2]} 11... Bb8 {[%clk 0:01:26]} 12. Be3 {[%clk 0:02:47.8]} 12... a6
{[%clk 0:01:25.6]} 13. h3 {[%clk 0:02:44.9]} 13... O-O {[%clk 0:01:22.5]} 14.
Be2 {[%clk 0:02:45.4]} 14... Nd5 {[%clk 0:01:21.9]} 15. Bc5 {[%clk 0:02:44.2]}
15... Rd8 {[%clk 0:01:21]} 16. Nfd4 {[%clk 0:02:32.8]} 16... Nxd4 {[%clk
0:01:20]} 17. Nxd4 {[%clk 0:02:31.6]} 17... Bg6 {[%clk 0:01:19.4]} 18. Bf3
{[%clk 0:02:30]} 18... Bd6 {[%clk 0:01:17]} 19. Bxd5 {[%clk 0:02:26]} 19... Bxc5
{[%clk 0:01:07.2]} 20. Bxb7 {[%clk 0:02:26.2]} 20... Rab8 {[%clk 0:01:05.7]} 21.
Nc6 {[%clk 0:02:23]} 21... Rxb7 {[%clk 0:00:59.2]} 22. Nxd8 {[%clk 0:02:22.3]}
22... Rb6 {[%clk 0:00:59.7]} 23. O-O {[%clk 0:02:11.2]} 23... Be7 {[%clk
0:00:57.5]} 24. Rfd1 {[%clk 0:02:11.1]} 24... Kf8 {[%clk 0:00:55.4]} 25. Rd7
{[%clk 0:01:53.7]} 25... Ke8 {[%clk 0:00:44.4]} 26. Rad1 {[%clk 0:01:54.2]}
26... Bc2 {[%clk 0:00:36]} 27. R1d2 {[%clk 0:01:53.6]} 27... Bxb3 {[%clk
0:00:36.3]} 28. Rb7 {[%clk 0:01:40.4]} 28... Rxb7 {[%clk 0:00:21.3]} 29. Nxb7
{[%clk 0:01:41.3]} 29... Bd5 {[%clk 0:00:20.6]} 30. Na5 {[%clk 0:01:40.1]} 30...
Bd8 {[%clk 0:00:20.4]} 31. b4 {[%clk 0:01:40.8]} 31... Ke7 {[%clk 0:00:18.5]}
32. Kf1 {[%clk 0:01:34]} 32... Bxa5 {[%clk 0:00:17.4]} 33. bxa5 {[%clk
0:01:34.4]} 33... Bc4+ {[%clk 0:00:11.8]} 34. Ke1 {[%clk 0:01:34.2]} 34... e5
{[%clk 0:00:12.1]} 35. f3 {[%clk 0:01:32.7]} 35... Ke6 {[%clk 0:00:12.6]} 36.
Kf2 {[%clk 0:01:32.9]} 36... f5 {[%clk 0:00:12.2]} 37. g3 {[%clk 0:01:32.5]}
37... e4 {[%clk 0:00:12.3]} 38. fxe4 {[%clk 0:01:30.3]} 38... fxe4 {[%clk
0:00:13.2]} 39. Ke3 {[%clk 0:01:31]} 39... Bd3 {[%clk 0:00:12.1]} 40. Rb2 {[%clk
0:01:31.7]} 40... Kd5 {[%clk 0:00:10.3]} 41. Rb7 {[%clk 0:01:32.3]} 41... Kc4
{[%clk 0:00:09.7]} 42. Rxg7 {[%clk 0:01:32.7]} 42... Kxc3 {[%clk 0:00:09.2]} 43.
Rxh7 {[%clk 0:01:33.2]} 43... Kb4 {[%clk 0:00:09.8]} 44. Rh5 {[%clk 0:01:33]}
44... Bc2 {[%clk 0:00:08.7]} 45. Rg5 {[%clk 0:01:33.2]} 45... Bd3 {[%clk
0:00:06.5]} 46. h4 {[%clk 0:01:33.4]} 46... Bb5 {[%clk 0:00:07.4]} 47. h5 {[%clk
0:01:34.3]} 47... Kxa5 {[%clk 0:00:06.9]} 48. h6 {[%clk 0:01:35.1]} 48... Kb4
{[%clk 0:00:05.9]} 49. h7 {[%clk 0:01:36]} 49... a5 {[%clk 0:00:06.7]} 50. h8=Q
{[%clk 0:01:36.5]} 50... a4 {[%clk 0:00:07.6]} 51. Qb2+ {[%clk 0:01:37]} 51...
Ka5 {[%clk 0:00:07.8]} 52. Qxb5# {[%clk 0:01:36.2]} 1-0

[Event "Early-Titled-Tuesday-Blitz-April-02-2024"]
[Site "Chess.com"]
[Date "2024.04.02"]
[Round "11"]
[White "KononenkoD"]
[Black "tusplingher"]
[Result "0-1"]
[WhiteElo "2613"]
[BlackElo "2516"]
[TimeControl "180+1"]
[EndTime "10:06:46 PDT"]
[Termination "tusplingher won by checkmate"]

1. e4 {[%clk 0:02:56.2]} 1... c5 {[%clk 0:02:59.7]} 2. Nf3 {[%clk 0:02:55.6]}
2... d6 {[%clk 0:02:59.8]} 3. d4 {[%clk 0:02:56.5]} 3... Nf6 {[%clk 0:03:00.4]}
4. Nc3 {[%clk 0:02:55.4]} 4... cxd4 {[%clk 0:03:00]} 5. Nxd4 {[%clk 0:02:55.9]}
5... a6 {[%clk 0:03:00.7]} 6. Bc4 {[%clk 0:02:56.1]} 6... e6 {[%clk 0:03:00.2]}
7. Bb3 {[%clk 0:02:56.6]} 7... Nbd7 {[%clk 0:02:59.5]} 8. O-O {[%clk 0:02:55.7]}
8... Nc5 {[%clk 0:02:59.7]} 9. f4 {[%clk 0:02:54.6]} 9... Ncxe4 {[%clk
0:02:54.7]} 10. Nxe4 {[%clk 0:02:53.5]} 10... Nxe4 {[%clk 0:02:54.7]} 11. f5
{[%clk 0:02:54.2]} 11... e5 {[%clk 0:02:54.3]} 12. Qf3 {[%clk 0:02:35.8]} 12...
Nf6 {[%clk 0:02:46.4]} 13. Ne2 {[%clk 0:02:34.9]} 13... Be7 {[%clk 0:02:43.8]}
14. Bg5 {[%clk 0:02:33.6]} 14... O-O {[%clk 0:02:42.4]} 15. Rad1 {[%clk
0:02:33.3]} 15... Qb6+ {[%clk 0:02:38.4]} 16. Kh1 {[%clk 0:02:31.9]} 16... Bd7
{[%clk 0:02:28.1]} 17. Qh3 {[%clk 0:02:26]} 17... Bc6 {[%clk 0:02:16.1]} 18.
Bxf6 {[%clk 0:02:25.3]} 18... Bxf6 {[%clk 0:02:15.7]} 19. Nc3 {[%clk 0:02:22.2]}
19... Rac8 {[%clk 0:02:05.3]} 20. Rg1 {[%clk 0:02:13.1]} 20... Qc7 {[%clk
0:01:46.6]} 21. Nd5 {[%clk 0:02:09.5]} 21... Bxd5 {[%clk 0:01:46.6]} 22. Rxd5
{[%clk 0:02:08.6]} 22... Qe7 {[%clk 0:01:43.7]} 23. Rgd1 {[%clk 0:02:08.7]}
23... Rfd8 {[%clk 0:01:41.7]} 24. Qd3 {[%clk 0:02:06.2]} 24... e4 {[%clk
0:01:40.5]} 25. Qe2 {[%clk 0:02:03.3]} 25... Bxb2 {[%clk 0:01:31.5]} 26. h3
{[%clk 0:02:03.1]} 26... Bf6 {[%clk 0:01:28.7]} 27. Qe3 {[%clk 0:01:54.3]} 27...
Bg5 {[%clk 0:01:18.4]} 28. Qg3 {[%clk 0:01:49]} 28... e3 {[%clk 0:01:13.8]} 29.
Re1 {[%clk 0:01:44.9]} 29... e2 {[%clk 0:00:41.2]} 30. Qf3 {[%clk 0:01:35.9]}
30... Re8 {[%clk 0:00:40.7]} 31. Rd3 {[%clk 0:01:17.8]} 31... Rc5 {[%clk
0:00:36.7]} 32. Bd5 {[%clk 0:01:01.9]} 32... Rxc2 {[%clk 0:00:30.8]} 33. Bxb7
{[%clk 0:01:01.2]} 33... Rc1 {[%clk 0:00:27.3]} 34. Qf2 {[%clk 0:00:57.8]} 34...
Rxe1+ {[%clk 0:00:27.6]} 35. Qxe1 {[%clk 0:00:58.7]} 35... Qxb7 {[%clk
0:00:28.1]} 36. Rxd6 {[%clk 0:00:58]} 36... Bh4 {[%clk 0:00:23.2]} 37. Qxe2
{[%clk 0:00:55.7]} 37... Rxe2 {[%clk 0:00:21.3]} 38. f6 {[%clk 0:00:54.2]} 38...
Qxg2# {[%clk 0:00:20.2]} 0-1

[Event "Early-Titled-Tuesday-Blitz-April-02-2024"]
[Site "Chess.com"]
[Date "2024.04.02"]
[Round "11"]
[White "only_strong_moves"]
[Black "TrompeterImEther"]
[Result "1-0"]
[WhiteElo "2735"]
[BlackElo "2573"]
[TimeControl "180+1"]
[EndTime "10:06:48 PDT"]
[Termination "only_strong_moves won by resignation"]

1. Nc3 {[%clk 0:03:00.9]} 1... d5 {[%clk 0:02:56.3]} 2. e4 {[%clk 0:02:52.6]}
2... dxe4 {[%clk 0:02:50.3]} 3. Nxe4 {[%clk 0:02:53.5]} 3... Nf6 {[%clk
0:02:50.7]} 4. Nxf6+ {[%clk 0:02:53.5]} 4... exf6 {[%clk 0:02:49.6]} 5. d4
{[%clk 0:02:54.4]} 5... Bd6 {[%clk 0:02:49.5]} 6. Bd3 {[%clk 0:02:54.9]} 6...
O-O {[%clk 0:02:48.7]} 7. Ne2 {[%clk 0:02:55.5]} 7... Re8 {[%clk 0:02:45.5]} 8.
O-O {[%clk 0:02:55.6]} 8... Nd7 {[%clk 0:02:45.7]} 9. c3 {[%clk 0:02:54]} 9...
c5 {[%clk 0:02:42.3]} 10. Bf4 {[%clk 0:02:50.1]} 10... Bxf4 {[%clk 0:02:38.6]}
11. Nxf4 {[%clk 0:02:51]} 11... cxd4 {[%clk 0:02:39.1]} 12. cxd4 {[%clk
0:02:47.8]} 12... Nb6 {[%clk 0:02:39]} 13. d5 {[%clk 0:02:42.9]} 13... g6 {[%clk
0:02:36.1]} 14. Qf3 {[%clk 0:02:39.2]} 14... Qd6 {[%clk 0:02:31.6]} 15. h4
{[%clk 0:02:32.1]} 15... h5 {[%clk 0:02:21.4]} 16. Qg3 {[%clk 0:02:23.2]} 16...
Bg4 {[%clk 0:02:06.6]} 17. Nxh5 {[%clk 0:02:10.8]} 17... Qxg3 {[%clk 0:02:03.7]}
18. Nxg3 {[%clk 0:02:11.7]} 18... Nxd5 {[%clk 0:02:03.2]} 19. f3 {[%clk
0:02:03.2]} 19... Be6 {[%clk 0:02:00.5]} 20. Rac1 {[%clk 0:02:02.2]} 20... Kg7
{[%clk 0:01:57.3]} 21. Be4 {[%clk 0:01:58]} 21... f5 {[%clk 0:01:51.9]} 22. Bb1
{[%clk 0:01:53.2]} 22... Rac8 {[%clk 0:01:49.4]} 23. Ne2 {[%clk 0:01:50.1]}
23... Ne3 {[%clk 0:01:46.3]} 24. Rfe1 {[%clk 0:01:48]} 24... Nc4 {[%clk
0:01:37.2]} 25. b3 {[%clk 0:01:37.9]} 25... Na3 {[%clk 0:01:27.4]} 26. Bd3
{[%clk 0:01:32.9]} 26... Red8 {[%clk 0:01:16]} 27. Nf4 {[%clk 0:01:32.3]} 27...
Rxc1 {[%clk 0:01:15.7]} 28. Rxc1 {[%clk 0:01:33.2]} 28... Kf6 {[%clk 0:01:16]}
29. Kf2 {[%clk 0:01:30.7]} 29... Rd7 {[%clk 0:01:08.6]} 30. Rc3 {[%clk
0:01:24.6]} 30... Rd4 {[%clk 0:00:47.4]} 31. Ke3 {[%clk 0:01:21.2]} 31... Rb4
{[%clk 0:00:46.6]} 32. Rc5 {[%clk 0:01:11.1]} 32... b6 {[%clk 0:00:31.4]} 33.
Rc6 {[%clk 0:01:11]} 33... Ke5 {[%clk 0:00:25.6]} 34. g3 {[%clk 0:01:04.7]}
34... Nb5 {[%clk 0:00:25.3]} 35. Bc4 {[%clk 0:00:57.3]} 35... Rxc4 {[%clk
0:00:08.2]} 36. bxc4 {[%clk 0:00:58.2]} 36... Nd4 {[%clk 0:00:07.9]} 37. Nd3+
{[%clk 0:00:56.9]} 1-0

[Event "Early-Titled-Tuesday-Blitz-April-02-2024"]
[Site "Chess.com"]
[Date "2024.04.02"]
[Round "11"]
[White "manitodeplomo"]
[Black "KetiTsatsalashvili"]
[Result "1-0"]
[WhiteElo "2638"]
[BlackElo "2428"]
[TimeControl "180+1"]
[EndTime "10:06:52 PDT"]
[Termination "manitodeplomo won by resignation"]

1. d4 {[%clk 0:03:00.9]} 1... Nf6 {[%clk 0:02:59.6]} 2. c4 {[%clk 0:02:59.9]}
2... e6 {[%clk 0:02:59.6]} 3. Nf3 {[%clk 0:02:59.6]} 3... b6 {[%clk 0:02:56.6]}
4. g3 {[%clk 0:02:59.1]} 4... Ba6 {[%clk 0:02:55.9]} 5. Qc2 {[%clk 0:02:53.6]}
5... Bb4+ {[%clk 0:02:54.8]} 6. Bd2 {[%clk 0:02:47.6]} 6... Bxd2+ {[%clk
0:02:53.4]} 7. Nbxd2 {[%clk 0:02:48.5]} 7... d5 {[%clk 0:02:47.4]} 8. Bg2 {[%clk
0:02:45.2]} 8... O-O {[%clk 0:02:47.1]} 9. O-O {[%clk 0:02:44.6]} 9... c6 {[%clk
0:02:45]} 10. b3 {[%clk 0:02:40.2]} 10... Nbd7 {[%clk 0:02:36.9]} 11. e4 {[%clk
0:02:40]} 11... dxe4 {[%clk 0:02:34.4]} 12. Nxe4 {[%clk 0:02:40.9]} 12... Nxe4
{[%clk 0:02:35]} 13. Qxe4 {[%clk 0:02:41.7]} 13... Rc8 {[%clk 0:02:33]} 14. Rfd1
{[%clk 0:02:40.2]} 14... Qe7 {[%clk 0:02:30.7]} 15. Rd2 {[%clk 0:02:37.3]} 15...
c5 {[%clk 0:02:17.2]} 16. d5 {[%clk 0:02:31.9]} 16... Qf6 {[%clk 0:02:17.2]} 17.
Rad1 {[%clk 0:02:27.8]} 17... exd5 {[%clk 0:02:15.6]} 18. Qxd5 {[%clk
0:02:21.4]} 18... Nb8 {[%clk 0:02:04.4]} 19. Qe5 {[%clk 0:01:56.7]} 19... Qxe5
{[%clk 0:01:44.2]} 20. Nxe5 {[%clk 0:01:57.6]} 20... Rfe8 {[%clk 0:01:43.5]} 21.
f4 {[%clk 0:01:53.6]} 21... f6 {[%clk 0:01:30.9]} 22. Bd5+ {[%clk 0:01:42.5]}
22... Kf8 {[%clk 0:01:31]} 23. Nf3 {[%clk 0:01:41.5]} 23... Nc6 {[%clk
0:01:28.9]} 24. Kf2 {[%clk 0:01:37.7]} 24... Bb7 {[%clk 0:01:25.7]} 25. Bxc6
{[%clk 0:01:34.8]} 25... Bxc6 {[%clk 0:01:24.7]} 26. Nh4 {[%clk 0:01:34]} 26...
g6 {[%clk 0:01:21.6]} 27. Ng2 {[%clk 0:01:30.8]} 27... Bxg2 {[%clk 0:01:19.2]}
28. Kxg2 {[%clk 0:01:30.4]} 28... Re7 {[%clk 0:01:18.2]} 29. Kf3 {[%clk
0:01:29.5]} 29... Rce8 {[%clk 0:01:18]} 30. Rd3 {[%clk 0:01:27.4]} 30... Kf7
{[%clk 0:01:18.5]} 31. R1d2 {[%clk 0:01:26.6]} 31... h5 {[%clk 0:01:18.8]} 32.
Rd7 {[%clk 0:01:22.5]} 32... Rxd7 {[%clk 0:01:17.8]} 33. Rxd7+ {[%clk 0:01:22]}
33... Re7 {[%clk 0:01:18.5]} 34. Rxe7+ {[%clk 0:01:21.9]} 34... Kxe7 {[%clk
0:01:19]} 35. Ke4 {[%clk 0:01:21.8]} 35... Ke6 {[%clk 0:01:17.7]} 36. f5+ {[%clk
0:01:17.1]} 36... gxf5+ {[%clk 0:01:09.6]} 37. Kf4 {[%clk 0:01:17]} 37... Ke7
{[%clk 0:00:57.7]} 38. Kxf5 {[%clk 0:01:16.6]} 38... Kf7 {[%clk 0:00:57.4]} 39.
h4 {[%clk 0:01:14.4]} 39... a6 {[%clk 0:00:55.8]} 40. a3 {[%clk 0:01:12.7]}
40... b5 {[%clk 0:00:52.3]} 41. a4 {[%clk 0:01:11.3]} 41... bxa4 {[%clk
0:00:49.3]} 42. bxa4 {[%clk 0:01:10.9]} 42... a5 {[%clk 0:00:50]} 43. g4 {[%clk
0:01:10.3]} 43... hxg4 {[%clk 0:00:50.3]} 44. Kxg4 {[%clk 0:01:11.2]} 44... Kg6
{[%clk 0:00:47.7]} 45. h5+ {[%clk 0:00:52.3]} 45... Kh6 {[%clk 0:00:47.9]} 46.
Kf5 {[%clk 0:00:52.7]} 46... Kxh5 {[%clk 0:00:48.6]} 47. Kxf6 {[%clk 0:00:53.3]}
47... Kg4 {[%clk 0:00:49.2]} 48. Ke5 {[%clk 0:00:53.9]} 48... Kf3 {[%clk
0:00:48.9]} 49. Kd5 {[%clk 0:00:54.5]} 49... Ke3 {[%clk 0:00:49.2]} 50. Kxc5
{[%clk 0:00:55.2]} 50... Kd3 {[%clk 0:00:49.8]} 51. Kb5 {[%clk 0:00:55.5]} 51...
Kd4 {[%clk 0:00:48.7]} 52. c5 {[%clk 0:00:55.5]} 52... Kd5 {[%clk 0:00:49.3]}
53. c6 {[%clk 0:00:54.4]} 53... Kd6 {[%clk 0:00:49.3]} 54. Kb6 {[%clk
0:00:54.7]} 1-0

[Event "Early-Titled-Tuesday-Blitz-April-02-2024"]
[Site "Chess.com"]
[Date "2024.04.02"]
[Round "11"]
[White "Navyblue1"]
[Black "shirovin"]
[Result "1-0"]
[WhiteElo "2264"]
[BlackElo "2055"]
[TimeControl "180+1"]
[EndTime "10:06:54 PDT"]
[Termination "Navyblue1 won on time"]

1. d4 {[%clk 0:03:00.9]} 1... Nf6 {[%clk 0:02:58.9]} 2. c4 {[%clk 0:03:01]} 2...
e6 {[%clk 0:02:58.6]} 3. Nf3 {[%clk 0:02:59.4]} 3... c5 {[%clk 0:02:57.9]} 4. d5
{[%clk 0:02:55.5]} 4... exd5 {[%clk 0:02:58]} 5. cxd5 {[%clk 0:02:55.8]} 5... d6
{[%clk 0:02:58.5]} 6. Nc3 {[%clk 0:02:55.5]} 6... g6 {[%clk 0:02:57]} 7. e4
{[%clk 0:02:50]} 7... Bg7 {[%clk 0:02:56.7]} 8. Nd2 {[%clk 0:02:49]} 8... O-O
{[%clk 0:02:53.6]} 9. Be2 {[%clk 0:02:48.5]} 9... a6 {[%clk 0:02:50.5]} 10. a4
{[%clk 0:02:47.1]} 10... Re8 {[%clk 0:02:47.3]} 11. O-O {[%clk 0:02:45.9]} 11...
Nbd7 {[%clk 0:02:46.7]} 12. h3 {[%clk 0:02:44.2]} 12... Rb8 {[%clk 0:02:36.5]}
13. a5 {[%clk 0:02:34.1]} 13... b5 {[%clk 0:02:34.8]} 14. axb6 {[%clk
0:02:33.2]} 14... Rxb6 {[%clk 0:02:35.3]} 15. Nc4 {[%clk 0:02:32.3]} 15... Rb4
{[%clk 0:02:34.6]} 16. Nxd6 {[%clk 0:02:31.9]} 16... Rf8 {[%clk 0:02:17.4]} 17.
Nc4 {[%clk 0:02:24]} 17... Re8 {[%clk 0:02:11.6]} 18. Qc2 {[%clk 0:02:19.3]}
18... Nb6 {[%clk 0:02:08.1]} 19. Nxb6 {[%clk 0:02:13.4]} 19... Qxb6 {[%clk
0:02:04.1]} 20. Bf3 {[%clk 0:02:12.9]} 20... Nh5 {[%clk 0:01:51.7]} 21. Na4
{[%clk 0:02:09.7]} 21... Qd6 {[%clk 0:01:47.4]} 22. Qxc5 {[%clk 0:02:08]} 22...
Qb8 {[%clk 0:01:37.8]} 23. Nc3 {[%clk 0:01:55.1]} 23... Bd4 {[%clk 0:01:18.6]}
24. Qc6 {[%clk 0:01:45.8]} 24... Rd8 {[%clk 0:01:10.2]} 25. Ne2 {[%clk
0:01:41.5]} 25... Bxb2 {[%clk 0:01:04.1]} 26. Bxb2 {[%clk 0:01:40.5]} 26... Rxb2
{[%clk 0:01:03.1]} 27. Qc3 {[%clk 0:01:32.5]} 27... Rb3 {[%clk 0:01:00.7]} 28.
Qd2 {[%clk 0:01:30.8]} 28... Rb2 {[%clk 0:00:43.2]} 29. Qg5 {[%clk 0:01:23.3]}
29... Bxh3 {[%clk 0:00:12.6]} 30. Bxh5 {[%clk 0:01:17.6]} 30... Bd7 {[%clk
0:00:10.5]} 31. Bf3 {[%clk 0:01:13]} 31... Rb3 {[%clk 0:00:08.5]} 32. Nd4 {[%clk
0:01:05.1]} 32... Rd3 {[%clk 0:00:07.5]} 33. Ne2 {[%clk 0:00:53.4]} 33... Rb3
{[%clk 0:00:05.8]} 34. Ng3 {[%clk 0:00:52.8]} 34... Kh8 {[%clk 0:00:01.2]} 35.
Qf6+ {[%clk 0:00:51.6]} 1-0

[Event "Early-Titled-Tuesday-Blitz-April-02-2024"]
[Site "Chess.com"]
[Date "2024.04.02"]
[Round "11"]
[White "Balla_Tamas"]
[Black "azikom"]
[Result "0-1"]
[WhiteElo "2490"]
[BlackElo "2649"]
[TimeControl "180+1"]
[EndTime "10:06:55 PDT"]
[Termination "azikom won by resignation"]

1. Nf3 {[%clk 0:03:00]} 1... Nf6 {[%clk 0:03:00.2]} 2. b3 {[%clk 0:02:59.9]}
2... d5 {[%clk 0:03:00.2]} 3. Bb2 {[%clk 0:02:59]} 3... c5 {[%clk 0:02:59.4]} 4.
e3 {[%clk 0:02:59.3]} 4... Bg4 {[%clk 0:02:57.4]} 5. Be2 {[%clk 0:02:55.9]} 5...
e6 {[%clk 0:02:56.2]} 6. c4 {[%clk 0:02:54]} 6... Nc6 {[%clk 0:02:53.4]} 7. d4
{[%clk 0:02:53.2]} 7... cxd4 {[%clk 0:02:52.4]} 8. exd4 {[%clk 0:02:53.4]} 8...
Bb4+ {[%clk 0:02:52.6]} 9. Nc3 {[%clk 0:02:49.2]} 9... Ne4 {[%clk 0:02:52.3]}
10. Rc1 {[%clk 0:02:45.6]} 10... Qa5 {[%clk 0:02:51.4]} 11. Qc2 {[%clk
0:02:33.7]} 11... Bxf3 {[%clk 0:02:48.4]} 12. Bxf3 {[%clk 0:02:31.9]} 12... Nxd4
{[%clk 0:02:47.9]} 13. Qd3 {[%clk 0:02:15.6]} 13... Nxf3+ {[%clk 0:02:45.1]} 14.
gxf3 {[%clk 0:02:12.7]} 14... Nxc3 {[%clk 0:02:44.4]} 15. Bxc3 {[%clk
0:02:12.1]} 15... dxc4 {[%clk 0:02:37.2]} 16. Qxc4 {[%clk 0:02:06]} 16... Bxc3+
{[%clk 0:02:36.8]} 17. Rxc3 {[%clk 0:02:05.6]} 17... O-O {[%clk 0:02:33]} 18.
O-O {[%clk 0:02:05.3]} 18... Qxa2 {[%clk 0:02:26.6]} 19. Kh1 {[%clk 0:02:00.1]}
19... g6 {[%clk 0:02:19.1]} 20. Rg1 {[%clk 0:01:57]} 20... Qxf2 {[%clk
0:02:15.8]} 21. Rg3 {[%clk 0:01:53.1]} 21... Rad8 {[%clk 0:02:09.1]} 22. Rc1
{[%clk 0:01:46.2]} 22... Rd2 {[%clk 0:02:07.1]} 23. Qh4 {[%clk 0:01:43.6]} 23...
a5 {[%clk 0:01:57.1]} 24. Rcg1 {[%clk 0:01:43.7]} 24... Rfd8 {[%clk 0:01:43.4]}
25. Qh6 {[%clk 0:01:42.2]} 25... Qd4 {[%clk 0:01:16.3]} 26. Qg5 {[%clk
0:01:30.3]} 26... b6 {[%clk 0:01:09.5]} 27. h4 {[%clk 0:01:28.5]} 27... Rd1
{[%clk 0:01:07.7]} 28. h5 {[%clk 0:01:25]} 28... Rxg1+ {[%clk 0:01:06.8]} 29.
Rxg1 {[%clk 0:01:25.2]} 29... Qd5 {[%clk 0:01:01.8]} 30. Qg4 {[%clk 0:01:06.5]}
30... Qf5 {[%clk 0:00:59.6]} 31. h6 {[%clk 0:00:59]} 31... Qxg4 {[%clk 0:00:59]}
32. Rxg4 {[%clk 0:00:59.1]} 32... Kf8 {[%clk 0:00:58.8]} 33. Rc4 {[%clk
0:00:58.8]} 33... Ke7 {[%clk 0:00:58.3]} 34. Rc7+ {[%clk 0:00:57.3]} 34... Rd7
{[%clk 0:00:57.5]} 35. Rc6 {[%clk 0:00:57.6]} 35... Kf6 {[%clk 0:00:55.9]} 36.
Rxb6 {[%clk 0:00:57.8]} 36... Kg5 {[%clk 0:00:54.8]} 37. Rb5+ {[%clk 0:00:57.9]}
37... Kxh6 {[%clk 0:00:54.1]} 38. Rxa5 {[%clk 0:00:58.5]} 38... Rd3 {[%clk
0:00:53.5]} 39. b4 {[%clk 0:00:46.5]} 39... Rxf3 {[%clk 0:00:53]} 40. b5 {[%clk
0:00:47.2]} 40... Rb3 {[%clk 0:00:52.6]} 41. Kg2 {[%clk 0:00:47.5]} 41... g5
{[%clk 0:00:51.8]} 42. Ra7 {[%clk 0:00:43.2]} 42... Kg6 {[%clk 0:00:50.1]} 43.
Rb7 {[%clk 0:00:42.9]} 43... h5 {[%clk 0:00:50]} 44. b6 {[%clk 0:00:43.6]} 44...
h4 {[%clk 0:00:50.1]} 45. Rb8 {[%clk 0:00:44.3]} 45... Kf5 {[%clk 0:00:49.2]}
46. b7 {[%clk 0:00:44.7]} 46... Kg4 {[%clk 0:00:48.6]} 47. Rf8 {[%clk
0:00:44.9]} 47... Rxb7 {[%clk 0:00:47.7]} 0-1

[Event "Early-Titled-Tuesday-Blitz-April-02-2024"]
[Site "Chess.com"]
[Date "2024.04.02"]
[Round "11"]
[White "Al_Shima"]
[Black "Shahdad2007"]
[Result "0-1"]
[WhiteElo "2478"]
[BlackElo "2583"]
[TimeControl "180+1"]
[EndTime "10:06:56 PDT"]
[Termination "Shahdad2007 won by resignation"]

1. e4 {[%clk 0:02:58]} 1... c5 {[%clk 0:03:00.2]} 2. Nf3 {[%clk 0:02:58.1]} 2...
e6 {[%clk 0:03:00.6]} 3. c3 {[%clk 0:02:58.2]} 3... d5 {[%clk 0:02:56.7]} 4.
exd5 {[%clk 0:02:59.1]} 4... exd5 {[%clk 0:02:56.7]} 5. d4 {[%clk 0:02:59.3]}
5... Nf6 {[%clk 0:02:56.3]} 6. Be3 {[%clk 0:02:58.3]} 6... cxd4 {[%clk
0:02:53.3]} 7. Nxd4 {[%clk 0:02:57.6]} 7... Nc6 {[%clk 0:02:53.5]} 8. Be2 {[%clk
0:02:56.8]} 8... Bd6 {[%clk 0:02:53.1]} 9. Nd2 {[%clk 0:02:56.8]} 9... O-O
{[%clk 0:02:52.1]} 10. O-O {[%clk 0:02:54.9]} 10... Re8 {[%clk 0:02:50]} 11. h3
{[%clk 0:02:54.4]} 11... Ne5 {[%clk 0:02:47]} 12. N2f3 {[%clk 0:02:53.1]} 12...
Ng6 {[%clk 0:02:46.4]} 13. Bd3 {[%clk 0:02:36.3]} 13... Nf4 {[%clk 0:02:43.8]}
14. Bc2 {[%clk 0:02:31.5]} 14... Ne4 {[%clk 0:02:43.4]} 15. Qc1 {[%clk
0:02:04.3]} 15... Qf6 {[%clk 0:02:42.2]} 16. Re1 {[%clk 0:01:30.5]} 16... Bxh3
{[%clk 0:02:28.2]} 17. g3 {[%clk 0:00:41.6]} 17... Ng6 {[%clk 0:02:18.4]} 18.
Bxe4 {[%clk 0:00:32.8]} 18... dxe4 {[%clk 0:02:13.3]} 19. Nh2 {[%clk 0:00:21.9]}
19... Ne5 {[%clk 0:02:12.1]} 20. Qd1 {[%clk 0:00:13]} 20... Nd3 {[%clk
0:02:05.3]} 21. Re2 {[%clk 0:00:13.2]} 21... h5 {[%clk 0:01:58.2]} 22. Rd2
{[%clk 0:00:09.6]} 22... h4 {[%clk 0:01:56.6]} 23. Qh5 {[%clk 0:00:08.4]} 23...
g6 {[%clk 0:01:11.9]} 24. Qxh4 {[%clk 0:00:07.4]} 24... Qxh4 {[%clk 0:01:11.8]}
25. gxh4 {[%clk 0:00:08.3]} 25... Kg7 {[%clk 0:01:12.3]} 26. Ne2 {[%clk
0:00:04.7]} 26... Rh8 {[%clk 0:01:09.4]} 27. Ng3 {[%clk 0:00:05.2]} 27... Bf5
{[%clk 0:01:05.3]} 28. Rad1 {[%clk 0:00:04]} 28... Rxh4 {[%clk 0:01:04.5]} 29.
Nhf1 {[%clk 0:00:03.1]} 29... Rah8 {[%clk 0:01:00.4]} 30. Kg2 {[%clk 0:00:03.3]}
30... Bf4 {[%clk 0:00:58.4]} 31. Bxf4 {[%clk 0:00:01.7]} 31... Nxf4+ {[%clk
0:00:58.1]} 32. Kg1 {[%clk 0:00:02.6]} 32... Bg4 {[%clk 0:00:55.3]} 33. Re1
{[%clk 0:00:02]} 33... Bf3 {[%clk 0:00:55.1]} 34. Rxe4 {[%clk 0:00:01.6]} 34...
Rh1+ {[%clk 0:00:54.8]} 0-1